fUSD/lending_fUSD_20260108
["ID","MTS","AMOUNT","RATE_DAILY","PERIOD"]
[400878222,1767851439338,-500.0,0.00014763,2]
[400878224,1767851439347,-500.0,0.00014763,2]
[400878226,1767851439357,-486.22003068,0.00014763,2]
[400878228,1767851439366,-500.0,0.00014763,2]
[400878230,1767851439375,-500.0,0.00014763,2]
[400878232,1767851439385,-200.0,0.00014791,2]
[400878234,1767851439394,-348.38,0.00014807,2]
[400878236,1767851439403,-1193.80859706,0.00014851,2]
[400878237,1767851439412,-16498.2168804,0.00014878,2]
[400878239,1767851439421,-200.0,0.00014939,2]
[400878241,1767851439430,-151.0,0.00014946,2]
[400878243,1767851439439,-151.0,0.00014946,2]
[400878245,1767851439448,-167.43,0.00014958,2]
[400878247,1767851439457,-151.0,0.00014972,2]
[400878249,1767851439466,-151.0,0.00014972,2]
[400878251,1767851439475,-151.0,0.00014972,2]
[400878253,1767851439484,-151.0,0.00014972,2]
[400878255,1767851439494,-276.96693716,0.00015011,2]
[400878257,1767851439503,-151.0,0.00015017,2]
[400878259,1767851439512,-151.0,0.00015017,2]
[400878261,1767851439521,-500.0,0.00015068,2]
[400878263,1767851439530,-200.0,0.00015089,2]
[400878265,1767851439539,-13059.84234563,0.00015091,2]
[400878267,1767851439548,-500.0,0.00015099,2]
[400878269,1767851439557,-166.66,0.00015183,2]
[400878271,1767851439567,-433.0,0.00015223,2]
[400878273,1767851439576,-500.0,0.00015236,2]
[400878275,1767851439585,-1000.0,0.0001531,2]
[400878277,1767851439594,-1000.0,0.0001531,2]
[400878279,1767851439604,-1000.0,0.0001531,2]
[400878280,1767851439612,-1000.0,0.0001531,2]
[400878282,1767851439622,-1002.28599053,0.0001531,2]
[400878284,1767851439631,-1000.0,0.0001531,2]
[400878286,1767851439640,-1000.0,0.0001531,2]
[400878288,1767851439649,-1000.0,0.0001531,2]
[400878290,1767851439658,-1000.0,0.0001531,2]
[400878292,1767851439667,-399.47409683,0.00015372,2]
[400878294,1767851439677,-587.0,0.00015444,2]
[400878296,1767851439687,-587.0,0.00015444,2]
[400878298,1767851439696,-790.96089808,0.00015524,2]
[400878300,1767851439705,-194.549792,0.00015531,2]
[400878302,1767851439714,-2351.0,0.00015533,2]
[400878304,1767851439723,-322.6107,0.00015534,2]
[400878306,1767851439732,-500.0,0.00015534,2]
[400878308,1767851439742,-1500.0,0.00015534,2]
[400878310,1767851439751,-500.0,0.00015534,2]
[400878312,1767851439760,-500.0,0.00015534,2]
[400878314,1767851439769,-1500.0,0.00015534,2]
[400878316,1767851439779,-500.0,0.00015534,2]
[400878318,1767851439788,-500.0,0.00015534,2]
[400878320,1767851439797,-1500.0,0.00015534,2]
[400878322,1767851439806,-500.0,0.00015534,2]
[400878324,1767851439815,-500.0,0.00015534,2]
[400878326,1767851439824,-1500.0,0.00015534,2]
[400878328,1767851439833,-500.0,0.00015534,2]
[400878330,1767851439843,-500.0,0.00015534,2]
[400878332,1767851439852,-1500.0,0.00015534,2]
[400878334,1767851439861,-500.0,0.00015534,2]
[400878336,1767851439870,-500.0,0.00015534,2]
[400878338,1767851439881,-1500.0,0.00015534,2]
[400878340,1767851439890,-500.0,0.00015534,2]
[400878342,1767851439900,-500.0,0.00015534,2]
[400878344,1767851439908,-1500.0,0.00015534,2]
[400878346,1767851439918,-500.0,0.00015534,2]
[400878348,1767851439927,-500.0,0.00015534,2]
[400878351,1767851439936,-1500.0,0.00015534,2]
[400878353,1767851439945,-500.0,0.00015534,2]
[400878356,1767851439954,-500.0,0.00015534,2]
[400878359,1767851439966,-1500.0,0.00015534,2]
[400878362,1767851439975,-500.0,0.00015534,2]
[400878365,1767851439984,-574.12855637,0.00015534,2]
[400878368,1767851439994,-1500.0,0.00015534,2]
[400878370,1767851440003,-500.0,0.00015534,2]
[400878373,1767851440012,-500.0,0.00015534,2]
[400878375,1767851440021,-1500.0,0.00015534,2]
[400878378,1767851440030,-500.0,0.00015534,2]
[400878380,1767851440039,-250.0,0.00015534,2]
[400878383,1767851440049,-500.0,0.00015534,2]
[400878386,1767851440058,-500.0,0.00015534,2]
[400878388,1767851440067,-270.73180541,0.00015534,2]
[400878391,1767851440076,-500.0,0.00015534,2]
[400878394,1767851440085,-419.1378307,0.00015534,2]
[400878396,1767851440094,-500.0,0.00015534,2]
[400878399,1767851440103,-500.0,0.00015534,2]
[400878401,1767851440112,-500.0,0.00015534,2]
[400878404,1767851440122,-620.0,0.00015534,2]
[400878406,1767851440131,-500.0,0.00015534,2]
[400878409,1767851440141,-500.0,0.00015534,2]
[400878455,1767851440474,-151.0,0.00015534,2]
[400878457,1767851440483,-736.73634073,0.00015534,2]
[400878459,1767851440494,-500.0,0.00015534,2]
[400878461,1767851440503,-500.0,0.00015534,2]
[400878463,1767851440512,-500.0,0.00015534,2]
[400878465,1767851440522,-578.20924308,0.00015534,2]
[400878467,1767851440532,-500.0,0.00015534,2]
[400878469,1767851440541,-2000.0,0.00015534,2]
[400878471,1767851440550,-500.0,0.00015534,2]
[400878473,1767851440559,-2000.0,0.00015534,2]
[400878475,1767851440568,-500.0,0.00015534,2]
[400878477,1767851440578,-2000.0,0.00015534,2]
[400878479,1767851440589,-151.66241854,0.00015534,2]
[400878481,1767851440598,-2000.0,0.00015534,2]
[400878483,1767851440607,-2000.0,0.00015534,2]
[400878485,1767851440616,-2000.0,0.00015534,2]
[400878487,1767851440626,-2000.0,0.00015534,2]
[400878488,1767851440635,-2000.0,0.00015534,2]
[400878489,1767851440644,-2000.0,0.00015534,2]
[400878490,1767851440653,-2000.0,0.00015534,2]
[400878491,1767851440662,-2000.0,0.00015534,2]
[400878492,1767851440671,-151.0,0.00015534,2]
[400878493,1767851440680,-2351.0,0.00015539,2]
[400878494,1767851440689,-500.0,0.00015589,2]
[400878495,1767851440698,-166.66,0.00015626,2]
[400878496,1767851440707,-13059.84234563,0.00015653,2]
[400878497,1767851440716,-353.04550387,0.00015858,2]
[400878498,1767851440725,-1500.0,0.00015858,2]
[400878499,1767851440734,-1374.30420202,0.00015858,2]
[400878500,1767851440743,-1500.0,0.00015858,2]
[400878501,1767851440752,-1500.0,0.00015858,2]
[400878502,1767851440761,-1500.0,0.00015858,2]
[400878503,1767851440770,-1006.63638204,0.00015858,2]
[400878504,1767851440779,-1181.44262662,0.00015858,2]
[400878505,1767851440788,-595.37131296,0.00016082,2]
[400878506,1767851440798,-152.48765181,0.00016082,2]
[400878507,1767851440807,-157.22325972,0.00016082,2]
[400878508,1767851440816,-451.90263959,0.00016115,2]
[400878509,1767851440825,-9252.33,0.00016116,2]
[400878510,1767851440834,-300.0,0.0001615,2]
[400878511,1767851440843,-300.0,0.00016181,2]
[400878512,1767851440851,-150.0,0.000162,2]
[400878513,1767851440860,-399.47409683,0.00016215,2]
[400878514,1767851440869,-13059.84234563,0.00016215,2]
[400878515,1767851440879,-500.0,0.00016247,2]
[400878516,1767851440888,-500.0,0.00016247,2]
[400878517,1767851440897,-150.0,0.00016255,2]
[400878519,1767851440906,-300.0,0.00016277,2]
[400878521,1767851440915,-150.0,0.00016309,2]
[400878523,1767851440924,-150.0,0.00016364,2]
[400878525,1767851440934,-833.0,0.000164,2]
[400878527,1767851440944,-162.0,0.000164,2]
[400878529,1767851440953,-162.0,0.000164,2]
[400878531,1767851440962,-833.0,0.000164,2]
[400878533,1767851440971,-1513.79086394,0.00016406,2]
[400878535,1767851440980,-2000.0,0.00016406,2]
[400878537,1767851440990,-2000.0,0.00016406,2]
[400878539,1767851441000,-2000.0,0.00016406,2]
[400878541,1767851441010,-150.0,0.00016418,2]
[400878543,1767851441019,-500.0,0.00016438,2]
[400878545,1767851441028,-1724.97065275,0.00016438,2]
[400878547,1767851441038,-1724.97065275,0.00016438,2]
[400878549,1767851441047,-1724.97065275,0.00016438,2]
[400878551,1767851441055,-1724.97065275,0.00016438,2]
[400878553,1767851441064,-1724.97065275,0.00016438,2]
[400878555,1767851441074,-1724.97065275,0.00016438,2]
[400878557,1767851441083,-1724.97065275,0.00016438,2]
[400878559,1767851441092,-1724.97065275,0.00016438,2]
[400878561,1767851441101,-1724.97065275,0.00016438,2]
[400878563,1767851441111,-1724.97065275,0.00016438,2]
[400878565,1767851441119,-1724.97065275,0.00016438,2]
[400878567,1767851441128,-1724.97065275,0.00016438,2]
[400878569,1767851441138,-1724.97065275,0.00016438,2]
[400878571,1767851441147,-1724.97065275,0.00016438,2]
[400878573,1767851441156,-1724.97065275,0.00016438,2]
[400878575,1767851441165,-1724.97065275,0.00016438,2]
[400878577,1767851441174,-1724.97065275,0.00016438,2]
[400878579,1767851441183,-1724.97065275,0.00016438,2]
[400878581,1767851441193,-1724.97065275,0.00016438,2]
[400878583,1767851441203,-1724.97065275,0.00016438,2]
[400878585,1767851441216,-1724.97065275,0.00016438,2]
[400878587,1767851441227,-1724.97065275,0.00016438,2]
[400878589,1767851441236,-1724.97065275,0.00016438,2]
[400878591,1767851441246,-1724.97065275,0.00016438,2]
[400878593,1767851441255,-1724.97065275,0.00016438,2]
[400878595,1767851441265,-1724.97065275,0.00016438,2]
[400878597,1767851441275,-1724.97065275,0.00016438,2]
[400878599,1767851441285,-1724.97065275,0.00016438,2]
[400878601,1767851441294,-1724.97065275,0.00016438,2]
[400878603,1767851441304,-1724.97065275,0.00016438,2]
[400878605,1767851441318,-1724.97065275,0.00016438,2]
[400878607,1767851441327,-1724.97065275,0.00016438,2]
[400878609,1767851441336,-1724.97065275,0.00016438,2]
[400878611,1767851441345,-1724.97065275,0.00016438,2]
[400878613,1767851441356,-1724.97065275,0.00016438,2]
[400878615,1767851441365,-1724.97065275,0.00016438,2]
[400878617,1767851441374,-1724.97065275,0.00016438,2]
[400878619,1767851441385,-1724.97065275,0.00016438,2]
[400878621,1767851441394,-1724.97065275,0.00016438,2]
[400878623,1767851441403,-1724.97065275,0.00016438,2]
[400878625,1767851441412,-1724.97065275,0.00016438,2]
[400878628,1767851441422,-1724.97065275,0.00016438,2]
[400878630,1767851441432,-1724.97065275,0.00016438,2]
[400878632,1767851441440,-1724.97065275,0.00016438,2]
[400878633,1767851441450,-1724.97065275,0.00016438,2]
[400878635,1767851441459,-1724.97065275,0.00016438,2]
[400878637,1767851441468,-1724.97065275,0.00016438,2]
[400878639,1767851441477,-1724.97065275,0.00016438,2]
[400878641,1767851441486,-1724.97065275,0.00016438,2]
[400878644,1767851441496,-1724.97065275,0.00016438,2]
[400878646,1767851441505,-1724.97065275,0.00016438,2]
[400878647,1767851441516,-1724.97065275,0.00016438,2]
[400878649,1767851441526,-1724.97065275,0.00016438,2]
[400878652,1767851441536,-1724.97065275,0.00016438,2]
[400878654,1767851441546,-1724.97065275,0.00016438,2]
[400878656,1767851441555,-1724.97065275,0.00016438,2]
[400878658,1767851441564,-1698.0179863,0.00016438,2]
[400878660,1767851441573,-1698.0179863,0.00016438,2]
[400878662,1767851441583,-1698.0179863,0.00016438,2]
[400878664,1767851441592,-1698.0179863,0.00016438,2]
[400878666,1767851441601,-1698.0179863,0.00016438,2]
[400878668,1767851441611,-1698.0179863,0.00016438,2]
[400878670,1767851441620,-1698.0179863,0.00016438,2]
[400878672,1767851441630,-1698.0179863,0.00016438,2]
[400878674,1767851441639,-1698.0179863,0.00016438,2]
[400878676,1767851441649,-1698.0179863,0.00016438,2]
[400878678,1767851441659,-1698.0179863,0.00016438,2]
[400878680,1767851441668,-1698.0179863,0.00016438,2]
[400878682,1767851441677,-1698.0179863,0.00016438,2]
[400878684,1767851441687,-1698.0179863,0.00016438,2]
[400878686,1767851441696,-1698.0179863,0.00016438,2]
[400878688,1767851441705,-1698.0179863,0.00016438,2]
[400878690,1767851441714,-1698.0179863,0.00016438,2]
[400878692,1767851441723,-1698.0179863,0.00016438,2]
[400878694,1767851441732,-1698.0179863,0.00016438,2]
[400878696,1767851441741,-1698.0179863,0.00016438,2]
[400878698,1767851441751,-1698.0179863,0.00016438,2]
[400878700,1767851441760,-1698.0179863,0.00016438,2]
[400878702,1767851441769,-1698.0179863,0.00016438,2]
[400878704,1767851441778,-1698.0179863,0.00016438,2]
[400878706,1767851441788,-1698.0179863,0.00016438,2]
[400878708,1767851441797,-1698.0179863,0.00016438,2]
[400878710,1767851441808,-1698.0179863,0.00016438,2]
[400878712,1767851441817,-1698.0179863,0.00016438,2]
[400878714,1767851441826,-800.0,0.00016438,2]
[400878716,1767851441835,-157.72323008,0.00016467,2]
[400878718,1767851441845,-150.0,0.00016473,2]
[400878720,1767851441855,-300.0,0.00016515,2]
[400878722,1767851441863,-736.0,0.00016516,2]
[400878724,1767851441873,-150.0,0.00016527,2]
[400878726,1767851441883,-150.0,0.00016582,2]
[400878728,1767851441892,-617.40005154,0.0001663,2]
[400878730,1767851441902,-150.0,0.00016636,2]
[400878732,1767851441913,-300.0,0.0001665,2]
[400878734,1767851441922,-150.0,0.00016691,2]
[400878736,1767851441931,-833.0,0.0001672,2]
[400878738,1767851441940,-833.0,0.0001672,2]
[400878740,1767851441949,-162.0,0.0001672,2]
[400878742,1767851441959,-833.0,0.0001672,2]
[400878744,1767851441970,-833.0,0.0001672,2]
[400878746,1767851441979,-150.0,0.00016745,2]
[400878748,1767851441989,-13059.84234563,0.00016776,2]
[400878750,1767851441999,-150.0,0.000168,2]
[400878752,1767851442008,-16498.2168804,0.00016837,2]
[400878754,1767851442019,-150.0,0.00016855,2]
[400878756,1767851442029,-304.30680198,0.00016856,2]
[400878758,1767851442038,-180.0,0.00016864,2]
[400878760,1767851442047,-300.0,0.00016888,2]
[400878762,1767851442058,-300.0,0.00016897,2]
[400878764,1767851442068,-300.0,0.00016902,2]
[400878766,1767851442077,-334.5472959,0.00016903,2]
[400878768,1767851442087,-642.94,0.00016903,2]
[400878771,1767851442098,-150.0,0.00016909,2]
[400878773,1767851442107,-2599.0,0.00016918,2]
[400878775,1767851442117,-823.0,0.0001694,2]
[400878777,1767851442126,-823.0,0.0001694,2]
[400878779,1767851442135,-2500.0,0.00016954,2]
[400878781,1767851442144,-2500.0,0.00016954,2]
[400878783,1767851442153,-2500.0,0.00016954,2]
[400878785,1767851442162,-150.0,0.00016964,2]
[400878786,1767851442171,-250.0,0.00016964,2]
[400878788,1767851442180,-300.0,0.00016972,2]
[400878791,1767851442189,-2599.0,0.0001698,2]
[400878793,1767851442199,-500.0,0.00016986,2]
[400878795,1767851442208,-500.0,0.00016986,2]
[400878797,1767851442217,-250.0,0.00017,2]
[400878799,1767851442227,-300.0,0.00017007,2]
[400878801,1767851442236,-157.72323008,0.00017016,2]
[400878803,1767851442245,-2599.0,0.00017018,2]
[400878805,1767851442255,-150.0,0.00017018,2]
[400878807,1767851442264,-833.0,0.0001704,2]
[400878809,1767851442273,-3292.0,0.00017042,2]
[400878811,1767851442282,-399.47409683,0.00017057,2]
[400878813,1767851442291,-150.0,0.00017073,2]
[400878815,1767851442300,-3292.0,0.00017087,2]
[400878816,1767851442312,-300.0,0.00017099,2]
[400878818,1767851442322,-20452.74518303,0.000171,2]
[400878820,1767851442331,-300.0,0.0001711,2]
[400878823,1767851442340,-500.0,0.00017123,2]
[400878825,1767851442349,-150.0,0.00017127,2]
[400878827,1767851442360,-300.0,0.00017148,2]
[400878829,1767851442370,-640.24385345,0.00017178,2]
[400878831,1767851442380,-178.56,0.00017178,2]
[400878833,1767851442391,-150.0,0.00017182,2]
[400878835,1767851442401,-514.65102238,0.00017182,2]
[400878837,1767851442410,-348.38,0.00017184,2]
[400878839,1767851442419,-2276.96201759,0.00017212,2]
[400878841,1767851442429,-5242.82669963,0.00017212,2]
[400878843,1767851442439,-300.0,0.00017232,2]
[400878845,1767851442448,-150.0,0.00017236,2]
[400878847,1767851442458,-833.4,0.00017248,2]
[400878849,1767851442468,-300.0,0.00017263,2]
[400878851,1767851442478,-300.0,0.00017263,2]
[400878853,1767851442487,-150.0,0.00017291,2]
[400878855,1767851442496,-2599.0,0.00017314,2]
[400878857,1767851442510,-833.4,0.00017316,2]
[400878859,1767851442525,-3383.0,0.00017326,2]
[400878861,1767851442536,-13059.84234563,0.00017338,2]
[400878863,1767851442545,-150.0,0.00017345,2]
[400878865,1767851442555,-162.0,0.0001736,2]
[400878867,1767851442564,-833.0,0.0001736,2]
[400878869,1767851442573,-833.0,0.0001736,2]
[400878871,1767851442582,-162.0,0.0001736,2]
[400878873,1767851442591,-175.0,0.0001736,2]
[400878875,1767851442600,-833.0,0.0001736,2]
[400878877,1767851442610,-300.0,0.00017374,2]
[400878879,1767851442619,-833.4,0.00017385,2]
[400878881,1767851442629,-254.0,0.00017397,2]
[400878883,1767851442639,-150.0,0.000174,2]
[400878885,1767851442648,-1000.0,0.000174,2]
[400878886,1767851442658,-3383.0,0.00017409,2]
[400878889,1767851442667,-2599.0,0.00017416,2]
[400878890,1767851442676,-300.0,0.00017422,2]
[400878892,1767851442685,-300.0,0.00017423,2]
[400878895,1767851442694,-167.43,0.00017427,2]
[400878896,1767851442704,-1852.42,0.00017434,2]
[400878899,1767851442713,-197.20922502,0.00017447,2]
[400878901,1767851442722,-150.0,0.00017452,2]
[400878903,1767851442732,-833.4,0.00017453,2]
[400878905,1767851442741,-150.0,0.00017455,2]
[400878907,1767851442751,-2000.0,0.000175,2]
[400878909,1767851442759,-300.0,0.00017501,2]
[400878911,1767851442769,-1508.63308647,0.00017502,2]
[400878913,1767851442778,-2464.35925581,0.00017502,2]
[400878915,1767851442788,-3000.0,0.00017502,2]
[400878917,1767851442797,-1000.0,0.00017509,2]
[400878919,1767851442807,-150.0,0.00017509,2]
[400878921,1767851442816,-833.4,0.00017521,2]
[400878923,1767851442825,-241.73307518,0.00017534,2]
[400878925,1767851442834,-223.22739,0.00017554,2]
[400878927,1767851442844,-150.0,0.00017564,2]
[400878929,1767851442854,-157.72323008,0.00017565,2]
[400878931,1767851442863,-3383.0,0.00017577,2]
[400878933,1767851442872,-833.4,0.0001759,2]
[400878935,1767851442882,-348.38,0.00017592,2]
[400878937,1767851442891,-1000.0,0.000176,2]
[400878939,1767851442900,-300.0,0.00017609,2]
[400878940,1767851442910,-150.0,0.00017618,2]
[400878942,1767851442919,-300.0,0.00017631,2]
[400878944,1767851442929,-5309.74765664,0.0001764,2]
[400878946,1767851442938,-833.4,0.00017658,2]
[400878948,1767851442948,-150.0,0.00017673,2]
[400878950,1767851442962,-162.0,0.0001768,2]
[400878952,1767851442978,-833.0,0.0001768,2]
[400878954,1767851442988,-833.0,0.0001768,2]
[400878956,1767851442997,-162.0,0.0001768,2]
[400878959,1767851443007,-162.0,0.0001768,2]
[400878960,1767851443016,-833.0,0.0001768,2]
[400878963,1767851443027,-637.69822594,0.00017685,2]
[400878964,1767851443036,-3500.0,0.000177,2]
[400878966,1767851443045,-300.0,0.00017702,2]
[400878969,1767851443055,-500.0,0.00017706,2]
[400878972,1767851443065,-25000.0,0.00017706,3]
[400878974,1767851443074,-300.0,0.00017711,2]
[400878976,1767851443084,-25000.0,0.00017715,3]
[400878978,1767851443093,-25000.0,0.00017724,3]
[400878980,1767851443102,-663.93287602,0.00017726,2]
[400878982,1767851443111,-833.4,0.00017727,2]
[400878984,1767851443120,-150.0,0.00017727,2]
[400878986,1767851443130,-300.0,0.0001773,2]
[400878988,1767851443140,-155.43282653,0.0001773,2]
[400878990,1767851443151,-25000.0,0.00017733,3]
[400878992,1767851443160,-300.0,0.00017737,2]
[400878994,1767851443169,-25000.0,0.00017742,3]
[400878996,1767851443178,-25000.0,0.0001775,3]
[400878998,1767851443187,-18960.0407067,0.00017759,3]
[400879001,1767851443205,-6039.9592933,0.00017759,3]
[400879003,1767851443214,-25000.0,0.00017768,3]
[400879005,1767851443223,-25000.0,0.00017777,3]
[400879006,1767851443232,-156.0,0.00017781,2]
[400879009,1767851443242,-300.0,0.00017781,2]
[400879011,1767851443251,-150.0,0.00017782,2]
[400879013,1767851443261,-500.0,0.00017785,2]
[400879015,1767851443271,-25000.0,0.00017786,3]
[400879017,1767851443280,-637.69822592,0.00017793,2]
[400879018,1767851443291,-25000.0,0.00017794,3]
[400879020,1767851443301,-833.4,0.00017795,2]
[400879023,1767851443317,-3552.45701751,0.000178,2]
[400879025,1767851443328,-1000.0,0.000178,2]
[400879027,1767851443339,-25000.0,0.00017803,3]
[400879028,1767851443348,-25000.0,0.00017812,3]
[400879031,1767851443358,-5807.81818,0.0001782,2]
[400879033,1767851443368,-5807.81819,0.0001782,2]
[400879035,1767851443377,-25000.0,0.00017821,3]
[400879036,1767851443388,-25000.0,0.0001783,3]
[400879038,1767851443397,-5807.81818,0.0001783,2]
[400879040,1767851443406,-1047.53522858,0.0001783,2]
[400879042,1767851443415,-150.0,0.00017836,2]
[400879044,1767851443424,-25000.0,0.00017838,3]
[400879046,1767851443434,-25000.0,0.00017847,3]
[400879048,1767851443443,-300.0,0.00017853,2]
[400879050,1767851443452,-200.0,0.00017855,2]
[400879053,1767851443462,-200.0,0.00017856,2]
[400879054,1767851443471,-25000.0,0.00017856,3]
[400879056,1767851443480,-200.0,0.00017856,2]
[400879059,1767851443490,-200.0,0.00017856,2]
[400879061,1767851443499,-5807.81819,0.0001786,2]
[400879062,1767851443508,-833.4,0.00017863,2]
[400879064,1767851443517,-338.00886573,0.00017864,2]
[400879066,1767851443526,-25000.0,0.00017865,3]
[400879069,1767851443536,-167.43,0.00017867,2]
[400879070,1767851443545,-177.4888516,0.00017872,3]
[400879073,1767851443555,-25000.0,0.00017874,3]
[400879075,1767851443564,-300.0,0.0001788,2]
[400879077,1767851443574,-5807.81819,0.0001788,2]
[400879079,1767851443587,-25000.0,0.00017882,3]
[400879081,1767851443596,-150.0,0.00017891,2]
[400879083,1767851443606,-25000.0,0.00017891,3]
[400879085,1767851443616,-196.52925005,0.00017897,2]
[400879087,1767851443625,-196.52925001,0.00017898,2]
[400879089,1767851443634,-196.52925001,0.00017898,2]
[400879091,1767851443643,-196.52925001,0.00017899,2]
[400879093,1767851443653,-196.52925001,0.00017899,2]
[400879095,1767851443663,-15507.21072869,0.000179,3]
[400879097,1767851443672,-10000.0,0.000179,2]
[400879099,1767851443681,-25000.0,0.000179,3]
[400879102,1767851443690,-637.69822592,0.000179,2]
[400879104,1767851443699,-399.47409683,0.000179,2]
[400879106,1767851443708,-13059.84234563,0.000179,2]
[400879108,1767851443718,-196.52925001,0.000179,2]
[400879109,1767851443727,-7124.30594989,0.000179,2]
[400879112,1767851443736,-13064.0,0.000179,2]
[400879114,1767851443746,-5807.81819,0.0001791,2]
[400879116,1767851443755,-300.0,0.00017912,2]
[400879118,1767851443764,-300.0,0.00017913,2]
[400879120,1767851443773,-1252.0,0.00017926,2]
[400879122,1767851443782,-833.4,0.00017932,2]
[400879124,1767851443792,-150.0,0.00017945,2]
[400879126,1767851443801,-500.0,0.0001797,2]
[400879128,1767851443811,-500.0,0.0001797,2]
[400879130,1767851443821,-500.0,0.0001797,2]
[400879132,1767851443831,-1000.0,0.0001797,2]
[400879134,1767851443841,-984.41347442,0.0001797,2]
[400879136,1767851443850,-1000.0,0.0001797,2]
[400879138,1767851443860,-1000.0,0.0001797,2]
[400879140,1767851443870,-1000.0,0.0001797,2]
[400879142,1767851443879,-1000.0,0.0001797,2]
[400879144,1767851443889,-1000.0,0.0001797,2]
[400879146,1767851443898,-1000.0,0.0001797,2]
[400879148,1767851443908,-1000.0,0.0001797,2]
[400879150,1767851443918,-1246.54474908,0.0001797,2]
[400879152,1767851443927,-300.0,0.00017971,2]
[400879154,1767851443937,-500.0,0.00017973,2]
[400879156,1767851443947,-500.75581913,0.00017973,2]
[400879158,1767851443956,-500.17178809,0.00017973,2]
[400879160,1767851443966,-633.01352033,0.00017973,2]
[400879162,1767851443976,-501.18870733,0.00017973,2]
[400879164,1767851443987,-338.62982115,0.00017973,2]
[400879166,1767851443996,-500.0,0.00017973,2]
[400879168,1767851444006,-500.0,0.00017982,2]
[400879170,1767851444015,-150.0,0.00017986,2]
[400879172,1767851444024,-790.96089808,0.0001799,2]
[400879174,1767851444033,-790.96089808,0.0001799,2]
[400879176,1767851444042,-655.14399476,0.00017994,2]
[400879178,1767851444051,-707.08949219,0.00017994,2]
[400879180,1767851444060,-194.549792,0.00017995,2]
[400879182,1767851444070,-101339.6777481,0.00017997,2]
[400879184,1767851444079,-194.549792,0.00017997,2]
[400879186,1767851444088,-456536.3445653,0.00017998,2]
[400879188,1767851444097,-177.65368226,0.00017999,2]
[400879190,1767851444106,-300.0,0.00017999,2]
[400879192,1767851444115,-1006.1979,0.00017999,2]
[400879194,1767851444125,-300.0,0.00017999,2]
[400879197,1767851444136,-666.0,0.00017999,2]
[400879199,1767851444146,-300.0,0.00017999,2]
[400879201,1767851444155,-666.0,0.00017999,2]
[400879203,1767851444163,-300.0,0.00017999,2]
[400879205,1767851444172,-666.0,0.00017999,2]
[400879207,1767851444181,-300.0,0.00017999,2]
[400879209,1767851444190,-5970.77362135,0.00017999,2]
[400879211,1767851444199,-154.67877044,0.00018,2]
[400879213,1767851444208,-4944824.10938911,0.00018,2]
[400879215,1767851444220,-301.76454383,0.00018,2]
[400879234,1767851444397,-682.81730511,0.000179,2]
[400879265,1767851444679,-163.56088585,0.000179,2]
[400879267,1767851444689,-611.13769855,0.00018,2]
[400879269,1767851444700,-6656.67750016,0.00018,2]
[400879287,1767851445041,-0.00064222,0.00018,2]
[400879316,1767851445333,-1137.80774843,0.00014666,2]
[400879324,1767851445407,-489.64607935,0.00014666,2]
[400879425,1767851446343,-17638.85364806,0.00014666,2]
[400879427,1767851446356,-647.22640714,0.00014666,2]
[400879430,1767851446373,-409.14193754,0.00014666,2]
[400883026,1767851484370,1107.2,0.00015,10]
[400883027,1767851486433,-10000.01,0.00012834,2]
[400883028,1767851486681,-10000.01,0.00012834,2]
[400883029,1767851486848,-10000.01,0.00012834,2]
[400883031,1767851501854,-10000.01,0.00012834,2]
[400883032,1767851501871,-10000.01,0.00012834,2]
[400883033,1767851501892,-10000.01,0.00012834,2]
[400883035,1767851519851,-10000.01,0.00012834,2]
[400883036,1767851520257,-10000.01,0.00012834,2]